Cogmind - Beta 14 @@@ ROGUE MODE // 2024.08.13 @ 18:14:33 // Winter2019/RPGLIKE Player: honey223 Result: Destroyed by G-47 Trooper with Particle Gun Performance ------------- Evolutions (2) 1000 Regions Visited (3) 600 Robots Destroyed (67) 335 Value Destroyed (2395) 2395 Prototype IDs (16) 320 Alien Tech Used (0) 0 Bonus (55) 55 TOTAL SCORE: 4705 Bonus ------- High Alert Combat Kills 55 Cogmind --------- Core Integrity 0/700 Matter 226/300 Energy 97/160 System Corruption 0% Temperature Hot (206) Movement Walking (130) Location -8/Materials Parts ------- > --- POWER (1) -------- Light Nuclear Core > --- PROPULSION (2) --- Cargo Legs > --- UTILITY (7+2) ---- Sensor Array Improved Signal Interpreter Advanced Targeting Computer Shield Generator Hacking Suite System Shield Corruption Screen > --- WEAPON (3) ------- Minigun Minigun Multitool > --- INVENTORY (1) ---- Mini Grenade Launcher Peak State ------------ > --- POWER ------------ Light Deuterium Engine > --- PROPULSION ------- Cargo Legs > --- UTILITY ---------- Sensor Array Improved Signal Interpreter Advanced Targeting Computer Shield Generator Hacking Suite System Shield Corruption Screen > --- WEAPON ----------- Minigun Minigun Multitool > --- INVENTORY -------- Mini Grenade Launcher [Rating: 46] Favorites ----------- Power Light Ion Engine Engine Light Ion Engine Power Core Light Nuclear Core Propulsion Cargo Legs Treads Light Treads Leg Cargo Legs Hover Unit Hover Unit Flight Unit Flight Unit Utility Signal Interpreter Device Sensor Array Processor Signal Interpreter Hackware Hacking Suite Protection Scrap Shield Weapon EM Pulse Gun Energy Gun EM Pulse Gun Ballistic Gun Minigun Ballistic Cannon Battle Cannon Special Weapon Multitool Impact Weapon Hammer Build | -11 -10 -10 -8 ------- Run | Yrd Mat Sub Mat Slots Evolved 9 | 3 3 . 3 Power . | . . . . Propulsion 1 | 1 . . . Utility 6 | 1 2 . 3 Weapon 2 | 1 1 . . Parts Attached 59 | 8 24 12 15 Power 6 | 1 2 . 3 Engine 5 | 1 2 . 2 Core 1 | . . . 1 Reactor . | . . . . Propulsion 9 | 4 4 1 . Treads 2 | 2 . . . Leg 3 | 2 . 1 . Wheel . | . . . . Hover 2 | . 2 . . Flight 2 | . 2 . . Utility 15 | 1 2 6 6 Device 7 | 1 1 4 1 Storage . | . . . . Processor 4 | . 1 . 3 Hackware 2 | . . . 2 Protection 2 | . . 2 . Artifact . | . . . . Weapon 29 | 2 16 5 6 Energy Gun 5 | . 4 1 . Energy Cannon . | . . . . Ballistic Gun 11 | 2 5 1 3 Ballistic Cannon 3 | . . 2 1 Launcher . | . . . . Special Weapon 3 | . . 1 2 Impact Weapon 7 | . 7 . . Slashing Weapon . | . . . . Piercing Weapon . | . . . . Special Melee Weapon . | . . . . Unidentified Prototypes . | . . . . Parts Lost . | . . . . Power . | . . . . Propulsion . | . . . . Utility . | . . . . Weapon . | . . . . Highest Loss Streak . | . . . . To Critical Strikes . | . . . . Average Slot Usage (%) 74 | . 84 69 73 Engine 8 | . 11 8 6 Leg 6 | . 4 7 6 Flight 6 | . 18 1 . Device 14 | . 14 14 13 Processor 9 | . 6 8 17 Hackware 1 | . . . 6 Protection 2 | . . 4 . Energy Gun 5 | . 5 8 1 Ballistic Gun 7 | . 15 . 10 Ballistic Cannon 3 | . . 6 1 Special Weapon 1 | . . 1 5 Impact Weapon 5 | . 3 8 1 Peak Build Rating 46 | 6 9 28 46 Average Rating 22 | 4 6 25 38 On Entrance 10 | . 6 9 27 Naked Turns . | . . . . Heaviest Build 29 | 9 11 29 23 Greatest Support 60 | 20 20 60 60 Greatest Overweight (x) 1 | 1 1 . . Average Overweight (x) . | . . . . Largest Inventory Capacity 1 | . 1 1 1 Average Capacity . | . . 1 1 Most Carried 1 | . 1 1 1 Average Carried . | . . . . Final Capacity 1 | . 1 1 1 Final Carried 1 | . 1 1 1 Class Distribution -------------------- 47% | Hacker-Mutant 23% | Scavenger-Mutant 16% | Hacker-Gunner 9% | Mutant Dominant Class ---------------- Scavenger-Mutant | -10/Materials Hacker-Mutant | -10/Subcaves Hacker-Gunner | -8/Materials Resources | -11 -10 -10 -8 ----------- Run | Yrd Mat Sub Mat Matter Collected 2424 | 325 567 676 856 Remotely . | . . . . Salvage Created 2405 | 42 945 361 1057 Parts 156 | 5 57 41 53 Haulers Intercepted 2 | . 2 . . Recyclers Shooed 3 | 1 2 . . Parts Field Recycled . | . . . . Retrieved Matter . | . . . . Parts Self-Destructed 21 | . . 21 . Prevented 2 | . . 2 . Kills | -11 -10 -10 -8 ------- Run | Yrd Mat Sub Mat Combat Hostiles Destroyed 53 | . 20 16 17 Melee 1 | . 1 . . Guns 40 | . 19 7 14 Cannons 12 | . . 9 3 Classes Destroyed 12 | 1 7 3 1 Worker 1 | . 1 . . Tunneler 3 | 2 1 . . Hauler 2 | . 2 . . Recycler 3 | . 2 . 1 Operator 2 | . 1 . 1 Watcher 3 | . 3 . . Swarmer 10 | . 6 4 . Grunt 27 | . 14 1 12 Sentry 5 | . . 1 4 Hunter 1 | . . . 1 Cobbler 1 | . . 1 . Subdweller 10 | . . 10 . Best Kill Streak 3 | 1 3 3 3 Combat Bots Only 3 | . 3 3 3 Max Kills in Single Turn 2 | 1 2 2 1 Gunslinging 1 | . . 1 . Exploded . | . . . . Melee 1 | . 1 . . Uniques/NPCs Destroyed . | . . . . Combat | -11 -10 -10 -8 -------- Run | Yrd Mat Sub Mat Hostile Shots Fired 264 | . 76 80 108 Missed 84 | . 21 30 33 Damage Taken 2465 | . 615 890 960 Core 1889 | . 509 605 775 Absorbed by Shields 224 | . . . 224 Redirected to Core 1435 | . 331 481 623 Ignored by Resistances 12 | . . 12 . Regen/Repaired (Parts) 20 | . 20 . . Core Remaining (%) 83 | 100 . 67 . Volleys Fired 349 | 12 197 54 86 Largest 2 | 2 2 2 2 Hottest 85 | 40 85 79 79 Shots Fired 554 | 23 276 101 154 Gun 477 | 23 276 55 123 Cannon 55 | . . 42 13 Launcher . | . . . . Special 22 | . . 4 18 Kinetic 335 | 23 139 50 123 Thermal 33 | . 11 4 18 Explosive . | . . . . Electromagnetic 186 | . 126 47 13 Robot Hit Streak 29 | 8 19 29 16 Robot Miss Streak 4 | 3 4 1 2 Penetration Max . | . . . . Secondary Targets 4 | . . 1 3 Max Gunslinging Chain 1 | . . 1 1 Shots Hit Robots 318 | 15 101 85 117 Core Hits 120 | 4 46 29 41 Critical Kills 1 | . 1 . . Critical Parts Destroyed 1 | . 1 . . Critical Strikes 7 | . 3 3 1 Burn 1 | . 1 . . Destroy 2 | . 2 . . Blast 3 | . . 3 . Corrupt 1 | . . . 1 Melee Attacks 43 | . 33 10 . Impact 43 | . 33 10 . Slashing . | . . . . Piercing . | . . . . Sneak Attacks 1 | . 1 . . Combat Hostiles 1 | . 1 . . Follow-up Attacks . | . . . . Damage Inflicted 4866 | 162 1462 1401 1841 Guns 3408 | 162 1156 554 1536 Cannons 942 | . . 728 214 Explosions 309 | . 209 100 . Melee 97 | . 97 . . Ramming . | . . . . Kinetic 3487 | 162 894 816 1615 Thermal 368 | . 158 119 91 Explosive 135 | . 135 . . Electromagnetic 779 | . 178 466 135 Impact 97 | . 97 . . Slashing . | . . . . Piercing . | . . . . Highest Corruption 1 | . 1 1 . Average Corruption 1 | . 1 1 . Corruption Purged . | . . . . Corruption Blocked . | . . . . Effects 30 | . 2 28 . Message Errors 3 | . . 3 . Matter Fused 15 | . 2 13 . Heat Flow Errors 2 | . . 2 . Energy Discharges 3 | . . 3 . Parts Fused 1 | . . 1 . Data Loss (minor) 2 | . . 2 . Data Loss (major) 3 | . . 3 . Alerts 1 | . . 1 . Overload Shots . | . . . . Overflow Damage 22 | . 22 . . Projectiles . | . . . . Explosions 14 | . 14 . . Melee 8 | . 8 . . Knockbacks 11 | . 1 7 3 Impact 1 | . 1 . . Kinetic 10 | . . 7 3 Secondary . | . . . . Self-Inflicted Damage 14 | . 14 . . Shots 1 | . 1 . . Rammed . | . . . . Targets Rammed 1 | . 1 . . Kicked 1 | . 1 . . Crushed . | . . . . Highest Temperature 305 | . 108 238 305 Average Temperature 38 | . 24 114 66 Received Heat Transfer 974 | . 300 201 473 Siege Activations . | . . . . Robots Corrupted 1 | . 1 . . Combat Hostiles . | . . . . Parts Fried 3 | . 3 . . Impact Corruptions 1 | . 1 . . Robots Melted . | . . . . Combat Hostiles . | . . . . Parts Melted 1 | . . 1 . Heat Transferred 871 | . 396 175 300 Parts Sabotaged . | . . . . Parts Stolen . | . . . . Parts Stripped . | . . . . Power Chain Reactions 2 | . 1 1 . Alert | -11 -10 -10 -8 ------- Run | Yrd Mat Sub Mat Peak Influence 1152 | 10 1152 . 273 Initial 57 | . 6 . 57 Average 282 | 3 422 . 107 Maximum Alert Level 4 | . 4 . 1 Low Security (%) 58 | 100 32 . 92 Level 1 17 | . 25 . 7 Level 2 10 | . 18 . . Level 3 11 | . 19 . . Level 4 2 | . 3 . . Level 5 . | . . . . High Security . | . . . . Max Security . | . . . . Squads Dispatched 9 | . 6 . 3 Investigation 6 | . 5 . 1 Extermination . | . . . . Reinforcement 3 | . 1 . 2 Assault . | . . . . Garrison . | . . . . Intercept . | . . . . Searches Triggered . | . . . . Construction Impeded . | . . . . Haulers Reinforced . | . . . . Active Scanning Responses . | . . . . Cargo Convoy Interrupts . | . . . . Stealth | -11 -10 -10 -8 --------- Run | Yrd Mat Sub Mat Distress Signals 3 | . 1 . 2 Communications Jammed . | . . . . Distress Signals . | . . . . Times Spotted 93 | . 32 21 40 Peak Tracking Total 5 | . 4 3 5 Tactical Retreats 5 | . 2 3 . Traps | -11 -10 -10 -8 ------- Run | Yrd Mat Sub Mat Traps Triggered 3 | . 2 . 1 Indirectly . | . . . . Trap Hack Attempts . | . . . . Triggered . | . . . . Disarmed . | . . . . Reprogrammed . | . . . . Reused . | . . . . Traps Extracted . | . . . . Installed . | . . . . Triggered . | . . . . Machines | -11 -10 -10 -8 ---------- Run | Yrd Mat Sub Mat Machines Disabled 40 | . 38 1 1 Max in Single Turn 2 | . 2 1 1 Machines Repaired . | . . . . Machines Dismantled . | . . . . Machines Sabotaged . | . . . . Overloaded Fab Kills . | . . . . Hacking | -11 -10 -10 -8 --------- Run | Yrd Mat Sub Mat Machines Accessed 13 | . 9 2 2 Terminals 7 | . 6 . 1 Fabricators . | . . . . Repair Stations 1 | . 1 . . Recycling Units 3 | . 2 . 1 Scanalyzers . | . . . . Garrison Access . | . . . . Total Hacks 53 | . 36 5 12 Successful 28 | . 17 5 6 Failed 25 | . 19 . 6 Catastrophic . | . . . . Database Lockouts . | . . . . Manual 31 | . 19 . 12 Terminals 34 | . 27 . 7 Fabricators . | . . . . Repair Stations 2 | . 2 . . Recycling Units 12 | . 7 . 5 Scanalyzers . | . . . . Garrison Access . | . . . . Terminal Hacks 14 | . 8 5 1 Record 4 | . . 4 . Robot Analysis 2 | . 2 . . Prototype ID Bank 4 | . 4 . . Terminal Index 1 | . . . 1 Locate Traps 2 | . 2 . . Derelict Proto ID Bank 1 | . . 1 . Fabricator Hacks . | . . . . Repair Station Hacks 2 | . 2 . . Scan Component 1 | . 1 . . Repair 1 | . 1 . . Recycling Unit Hacks 4 | . 4 . . Retrieve Matter 2 | . 2 . . Retrieve Components 2 | . 2 . . Scanalyzer . | . . . . Garrison Access Hacks . | . . . . Unauthorized Hacks 8 | . 3 . 5 Terminals 3 | . 1 . 2 Botnet 2 | . 1 . 1 Disrupt 1 | . . . 1 Fabricators . | . . . . Repair Stations . | . . . . Recycling Units 5 | . 2 . 3 Reject 1 | . . . 1 Recyclers 1 | . . . 1 Mask 1 | . . . 1 Tunnel 2 | . 2 . . Scanalyzers . | . . . . Garrison Access . | . . . . Data Cores Recovered . | . . . . Used . | . . . . Hacking Detections 10 | . 8 . 2 Full Trace Events 2 | . 2 . . Feedback Events 1 | . 1 . . Corruption 1 | . 1 . . Feedback Blocked . | . . . . Robot Schematics Acquired . | . . . . Robots Built . | . . . . Authchips . | . . . . Time . | . . . . Total Robot Build Rating . | . . . . Part Schematics Acquired . | . . . . Parts Built . | . . . . Authchips . | . . . . Time . | . . . . Total Part Build Rating . | . . . . Parts Repaired 1 | . 1 . . Time 26 | . 26 . . Parts Recycled . | . . . . Recycled Matter . | . . . . Retrieved Matter . | . . . . Retrieved Components 7 | . 7 . . Parts Scanalyzed . | . . . . Part Schematics Acquired . | . . . . Parts Damaged . | . . . . Bothacking | -11 -10 -10 -8 ------------ Run | Yrd Mat Sub Mat Used RIF Installer . | . . . . Robots Hacked . | . . . . Non-combat . | . . . . Combat . | . . . . Robot Hacks Applied . | . . . . Relay Couplers Released . | . . . . Fabnet Peak Effective % . | . . . . Robots Rewired . | . . . . Allies Hacked . | . . . . Hacks Repelled . | . . . . Allies | -11 -10 -10 -8 -------- Run | Yrd Mat Sub Mat Total Allies . | . . . . Largest Group . | . . . . Highest-Rated Group . | . . . . Highest-Rated Ally . | . . . . Total Orders . | . . . . Ally Attacks . | . . . . Total Damage . | . . . . Kills . | . . . . Allies Corrupted . | . . . . Allies Melted . | . . . . Intel | -11 -10 -10 -8 ------- Run | Yrd Mat Sub Mat Robot Analysis Total 2 | . 2 . . Derelict Logs Recovered 1 | . . 1 . Drone Launches . | . . . . Drone Recoveries . | . . . . Exploration | -11 -10 -10 -8 ------------- Run | Yrd Mat Sub Mat Turns Passed 6221 | 99 1823 2994 1305 Spaces Moved 4593 | 46 1841 2184 522 Core 19 | 19 . . . Treads . | . . . . Legs 2514 | 27 95 1870 522 Wheels . | . . . . Hover 226 | . 226 . . Flight 1834 | . 1520 314 . Fastest Speed 37 | 50 37 37 130 Average Speed 88 | 107 43 116 130 Slowest Speed 130 | 120 120 130 130 Overloaded Moves . | . . . . Propulsion Burnouts . | . . . . Robots Hopped 1 | . 1 . . Cave-ins Triggered . | . . . . Exploration Rate (%) 55 | 6 100 86 28 Regions Visited 3 Branch Regions 1 Pre-discovered Areas 4 | . 2 2 . Known Exits Taken 2 | . 1 1 . Unknown Exits Taken 1 | 1 . . . Scrap Searched 10 | . . 10 . Spaces Dug 4 | . 1 3 . Terrain Destroyed 359 | . 348 9 2 Melee 4 | . 1 3 . Projectile 2 | . . . 2 AOE 353 | . 347 6 . Terrain Rammed . | . . . . Walls Destroyed . | . . . . Machines Disabled . | . . . . Actions | -11 -10 -10 -8 --------- Run | Yrd Mat Sub Mat Total 6127 | 72 2527 2513 1015 Wait 974 | 5 390 211 368 Move 4588 | 45 1838 2183 522 Hop 1 | . 1 . . Pick Up 10 | . 6 2 2 Fast Attach 39 | 8 10 10 11 Attach 3 | . 2 . 1 Detach . | . . . . Swap 17 | . 12 2 3 Drop 36 | 2 11 13 10 Fire 349 | 12 197 54 86 Melee 43 | . 33 10 . Ram . | . . . . Kick 1 | . 1 . . Crush . | . . . . Escape Stasis . | . . . . Rewire . | . . . . Trap . | . . . . Miscellaneous 66 | . 26 28 12 Route ------- -11/Scrapyard -10/Materials (discovered 5 exits: *Mat x3 / [*Min] / *Sub) -10/Subcaves (discovered 2 exits: *Mat / [*Rec]) -8/Materials (discovered 2 exits: [*Fac] / [*Sto]) History --------- Turn | Location | Event 1 | -11/Scrapyard | Upgraded with Propulsion slot (x1) 1 | -11/Scrapyard | Upgraded with Utility slot (x1) 1 | -11/Scrapyard | Upgraded with Weapon slot (x1) 5 | -11/Scrapyard | Discovered new exit (range 15) 100 | -11/Scrapyard | Entered Materials 301 | -10/Materials | Upgraded with Utility slot (x1) 306 | -10/Materials | Build established: Mutant 499 | -10/Materials | Discovered new exit (range 6) 602 | -10/Materials | Discovered new exit (range 15) 655 | -10/Materials | Discovered new exit (range 16) 765 | -10/Materials | Core integrity fell below 50% 771 | -10/Materials | Reached level 2 888 | -10/Materials | Build established: Scavenger-Mutant 1005 | -10/Materials | Discovered new exit (range 3) 1054 | -10/Materials | Discovered new exit (range 9) 1183 | -10/Materials | Repaired Lgt. Ion Engine 1198 | -10/Materials | Identified exit to Materials 1205 | -10/Materials | Reached level 3 1494 | -10/Materials | Reached level 4 1831 | -10/Materials | Upgraded with Utility slot (x1) 1831 | -10/Materials | Upgraded with Weapon slot (x1) 1923 | -10/Materials | Identified exit to Subcaves 1923 | -10/Materials | Entered Subcaves 1925 | -10/Subcaves | Reached level 5 1975 | -10/Subcaves | Learned location of Zion (-6) 1975 | -10/Subcaves | Met a Zionite searching for "candidates" 1979 | -10/Subcaves | Discovered new exit (range 5) 2022 | -10/Subcaves | Identified exit to Materials 2096 | -10/Subcaves | Visited 4L-MR0's lab 2103 | -10/Subcaves | Found Cargo Legs 2104 | -10/Subcaves | Attached Cargo Legs, gained temporary slots: Utility x2 2303 | -10/Subcaves | Learned Materials terminal intel 2534 | -10/Subcaves | Discovered new exit (range 12) 2626 | -10/Subcaves | Build established: Hacker-Mutant 2842 | -10/Subcaves | Ambushed by Subdwellers from Twisted Machinery 3289 | -10/Subcaves | Ambushed by Subdwellers from Twisted Machinery 3363 | -10/Subcaves | Shifting Twisted Machinery released Sub. Power Source 3721 | -10/Subcaves | Ambushed by Subdwellers from Twisted Machinery 3965 | -10/Subcaves | Visited Clippyterm 3968 | -10/Subcaves | Learned location of Section 7 (-2) 4917 | -10/Subcaves | Entered Materials 4918 | -8/Materials | Loaded intel: 12 terminal locations 4919 | -8/Materials | Reached level 6 5006 | -8/Materials | Core integrity fell below 50% 5008 | -8/Materials | Reached level 7 5051 | -8/Materials | Upgraded with Utility slot (x1) 5128 | -8/Materials | Upgraded with Utility slot (x1) 5142 | -8/Materials | Discovered new exit (range 14) 5476 | -8/Materials | Build established: Hacker-Gunner 5593 | -8/Materials | Upgraded with Utility slot (x1) 5725 | -8/Materials | Core integrity fell below 20% 5953 | -8/Materials | Reached level 8 6146 | -8/Materials | Discovered new exit (range 16) 6222 | -8/Materials | Destroyed by G-47 Trooper with Particle Gun Last Messages --------------- 06045_ G-47 Trooper destroyed. 06045_ Switching to secondary target: G-47 Trooper. 06055_ G-47 Trooper destroyed. 06066_ Used Protomatter to restore core integrity (+138, depleted) 06067_ Acquired 72 matter. 06075_ Dropped Imp. Datajack. 06076_ Acquired Mni. Grenade Launcher. 06096_ Discarded Signal Interpreter. 06097_ Acquired Imp. Signal Interpreter. 06119_ Dropped Lgt. Deuterium Engine. 06119_ Acquired Lgt. Nuclear Core. 06127_ Acquired 30 matter. 06146_ EXIT=FOUND 06180_ Triggered Alarm Trap. 06180_ An alarm sounds. 06180_ ALERT: Alarm triggered, dispatching investigation squad. 06209_ Critical hit (Burn: +26). Map ----- +----------------------------------------------------+ | ????????????????????????# """"" | | ????????????????????????# """"" | | ????????????????????????# """"" | | ????????????????????????# " | | ????????????????????????# | | ????????????????????#########+### | | ????????????????????# | | ????????????????????# | | ????????????????????# | | ??????????########### ######### | | ??????????# !# #???????? | | ??????????# """ # #???????? | | ??????????# "R ]] # ######### | | ??????????# """ ]] # | | ??????????# + | | ??????????# # | | ??????????# # | | ??????????# # | | ????############ #### """ """ | | ????# ########### """ """ | | ????# """ """ | | ????# | | ????# g [ = | | ????# ############+##### | | ????## g##?????#[%!%=[==%## | | ?????# @#??????# %*[!!""=## | | ?????# #??????# ====Y" ## | | ?????# w #??????# !![!"" ## | | ???### #??????# """[ ## | | #### # #?###??# """ ## ## | | # ! !# ### #### """ ## #? | | # !! # # === /# ## ? | | # !! # #*== ###########?% ? | | # # #=== #???????????#%%%? | | # ; g + = |#????????????#### | | # ""# #%"T" #???????????????? | | # T"# g#= *% #???????????????? | | # ""# ########???????????????? | | # # #??????????????????????? | | ###### #??????????????????????? | | ?????# #??????????????????????? | | ?????# #??????????????????????? | | ?????# #??????????????????????? | | ?????# #??????????????????????? | | ?????# #??????????????????????? | | ?????# #??????????????????????? | | ?????# #??????????????????????? | | ?????# #??????????????????????? | | ?????# #??????????????????????? | | ?????# #??????????????????????? | +----------------------------------------------------+ Best States ------------- Heat Dissipation 25 Energy Generation 14 Energy Capacity 265 Matter Stores 300 Matter Capacity 300 Sight Range 21 Robot Scan Range 14 Terrain Scan Density 10 Corruption Block 8 Armor Coverage 800 Resistance: TH 10 Evasion (%) 62 Targeting Accuracy 8 Offensive Hacking 20 Defensive Hacking 20 Item Schematics ----------------- None Robot Schematics ------------------ None Fabricated ------------ Nothing Alien Tech Used ----------------- None Achievements -------------- None Challenges ------------ None RPGLIKE | -11 -10 -10 -8 --------- Run | Yrd Mat Sub Mat Levels Raised 7 | . 3 1 3 XP Earned 14026 | 3000 5852 1449 3725 XP Spent 11910 | 1500 5250 . 5160 Upgrades 19 | 3 11 . 5 Propulsion Slot 1 | 1 . . . Utility Slot 6 | 1 2 . 3 Weapon Slot 2 | 1 1 . . Core Integrity 2 | . . . 2 Mass Support 1 | . 1 . . Inventory Capacity 1 | . 1 . . Ranged Accuracy 2 | . 2 . . Hack Attack % 2 | . 2 . . Hack Defense % 2 | . 2 . . Protomatter Created 623 | . 237 205 181 Integrity Restored 1341 | . 567 510 264 Core 1185 | . 509 412 264 Parts 156 | . 58 98 . Protomatter Decayed 117 | . . 24 93 Game ------ Seed ArchitectSpikedBlaster Manual? 0 Play Time 01:07:10 Cumulative 239.1 hours Start 2024.08.13 @ 17:06:07 End 2024.08.13 @ 18:14:33 Sessions 3 Manual Loads 0 Difficulty Rogue Special Mode Winter2019/RPGLIKE Game No. 58 Rogue 33 Adventurer 25 Explorer 0 Win Type - Total 18 Types 10/2/1/1/1/0/0/2/1 Lore% 63 Gallery% 73 Achievement% 78 Wizard Run 0 Options --------- Layout 1 ASCII 0 Keyboard 0 Movement Mouse Keybinds 0 Fullscreen 2 Font 32/SmallcapsGlow Map View 50x40 Zoom Use 0% Tactical HUD 1 Map Filters NONE Filters NONE Steam 1 RUN: 00d171bb-7950-4299-ab22-085e2ec5fe8a